[Event "*** Titled Tuesday Blitz"]
[Site "Chess.com"]
[Date "2020.04.28"]
[Round "5"]
[White "GelmanAlexander"]
[Black "Firehand33"]
[Result "0-1"]
[WhiteElo "2525"]
[BlackElo "2748"]
[TimeControl "180+1"]
[EndTime "10:54:20 PDT"]
[Termination "Firehand33 won by resignation"]

1. c4 {[%clk 0:03:00.9]} 1... b6 {[%clk 0:02:59.6]} 2. Nf3 {[%clk 0:02:59.8]}
2... Bb7 {[%clk 0:03:00.5]} 3. e3 {[%clk 0:03:00.4]} 3... g6 {[%clk 0:03:00.4]}
4. d3 {[%clk 0:03:00.2]} 4... Bg7 {[%clk 0:03:01.3]} 5. Be2 {[%clk 0:03:00.7]}
5... f5 {[%clk 0:02:57.1]} 6. O-O {[%clk 0:03:00.8]} 6... Nf6 {[%clk 0:02:57.4]}
7. Nc3 {[%clk 0:02:59]} 7... O-O {[%clk 0:02:57.3]} 8. Qc2 {[%clk 0:02:54.8]}
8... d6 {[%clk 0:02:49.6]} 9. b4 {[%clk 0:02:42.3]} 9... e5 {[%clk 0:02:47]} 10.
Bb2 {[%clk 0:02:36.3]} 10... Nbd7 {[%clk 0:02:46.2]} 11. Nd2 {[%clk 0:02:28.2]}
11... g5 {[%clk 0:02:39]} 12. Bf3 {[%clk 0:02:28.2]} 12... c6 {[%clk 0:02:39]}
13. b5 {[%clk 0:02:23.3]} 13... Qc7 {[%clk 0:02:20.4]} 14. bxc6 {[%clk
0:02:20.2]} 14... Bxc6 {[%clk 0:02:20.6]} 15. Bxc6 {[%clk 0:02:20.5]} 15... Qxc6
{[%clk 0:02:21.5]} 16. h3 {[%clk 0:02:13.5]} 16... g4 {[%clk 0:02:10.3]} 17.
hxg4 {[%clk 0:02:11.1]} 17... Nxg4 {[%clk 0:02:10.1]} 18. Nd5 {[%clk 0:02:07.4]}
18... Rae8 {[%clk 0:02:09.4]} 19. Qd1 {[%clk 0:01:53]} 19... Ndf6 {[%clk
0:02:08]} 20. e4 {[%clk 0:01:43.5]} 20... Qd7 {[%clk 0:01:53.3]} 21. Qf3 {[%clk
0:01:14.5]} 21... Nxd5 {[%clk 0:01:49.2]} 22. cxd5 {[%clk 0:01:09.6]} 22... fxe4
{[%clk 0:01:35.9]} 23. Qxe4 {[%clk 0:01:08.7]} 23... Bh6 {[%clk 0:01:25.6]} 24.
Nc4 {[%clk 0:00:54.6]} 24... b5 {[%clk 0:01:23.9]} 25. Na5 {[%clk 0:00:38.2]}
25... Rf4 {[%clk 0:01:20.7]} 26. Qe2 {[%clk 0:00:37.9]} 26... Ref8 {[%clk
0:01:18.3]} 27. Nc6 {[%clk 0:00:28.7]} 27... Rxf2 {[%clk 0:01:14.3]} 28. Qe4
{[%clk 0:00:13.9]} 28... Rxf1+ {[%clk 0:01:09]} 29. Rxf1 {[%clk 0:00:13.4]}
29... Be3+ {[%clk 0:01:08.9]} 0-1

[Event "*** Titled Tuesday Blitz"]
[Site "Chess.com"]
[Date "2020.04.28"]
[Round "5"]
[White "TengisChess"]
[Black "kakakz"]
[Result "0-1"]
[WhiteElo "2546"]
[BlackElo "2407"]
[TimeControl "180+1"]
[EndTime "10:54:20 PDT"]
[Termination "kakakz won by checkmate"]

1. Nf3 {[%clk 0:03:00.9]} 1... Nf6 {[%clk 0:02:59.5]} 2. g3 {[%clk 0:03:00.1]}
2... g6 {[%clk 0:02:59.9]} 3. Bg2 {[%clk 0:03:00.4]} 3... Bg7 {[%clk 0:03:00]}
4. O-O {[%clk 0:03:01.3]} 4... c5 {[%clk 0:03:00.2]} 5. d4 {[%clk 0:02:59.3]}
5... cxd4 {[%clk 0:03:00.1]} 6. Qxd4 {[%clk 0:02:59.9]} 6... Nc6 {[%clk
0:02:59]} 7. Qh4 {[%clk 0:02:59.8]} 7... d6 {[%clk 0:02:55.9]} 8. Nc3 {[%clk
0:02:59.8]} 8... Bg4 {[%clk 0:02:49.5]} 9. Bh6 {[%clk 0:02:59.3]} 9... O-O
{[%clk 0:02:36]} 10. Ng5 {[%clk 0:02:58.4]} 10... Nd4 {[%clk 0:02:22.2]} 11. f3
{[%clk 0:02:47.6]} 11... Nf5 {[%clk 0:02:15.7]} 12. Bxg7 {[%clk 0:02:43.2]}
12... Kxg7 {[%clk 0:02:05.9]} 13. Ne6+ {[%clk 0:02:26.1]} 13... fxe6 {[%clk
0:02:03.1]} 14. Qg5 {[%clk 0:02:26.6]} 14... Qb6+ {[%clk 0:01:47.1]} 15. Kh1
{[%clk 0:02:26]} 15... Qe3 {[%clk 0:01:36.3]} 16. Qxe3 {[%clk 0:02:16.3]} 16...
Nxe3 {[%clk 0:01:37.2]} 17. fxg4 {[%clk 0:02:16.8]} 17... Nxf1 {[%clk 0:01:37]}
18. Rxf1 {[%clk 0:02:14.6]} 18... Nxg4 {[%clk 0:01:36.6]} 19. Rc1 {[%clk
0:02:15.1]} 19... d5 {[%clk 0:01:31.9]} 20. h3 {[%clk 0:02:13.5]} 20... Ne3
{[%clk 0:01:27.9]} 21. Bf3 {[%clk 0:02:12.4]} 21... Rac8 {[%clk 0:01:27.4]} 22.
Kg1 {[%clk 0:02:04.4]} 22... b6 {[%clk 0:01:22.6]} 23. Kf2 {[%clk 0:02:02.3]}
23... Nc4 {[%clk 0:01:19.7]} 24. Nb5 {[%clk 0:01:55.3]} 24... a6 {[%clk
0:01:05.1]} 25. Nd4 {[%clk 0:01:54.7]} 25... Rf6 {[%clk 0:01:04.9]} 26. b3
{[%clk 0:01:53.4]} 26... Ne5 {[%clk 0:00:59.9]} 27. a4 {[%clk 0:01:47.3]} 27...
Nxf3 {[%clk 0:00:57.9]} 28. Nxf3 {[%clk 0:01:45.5]} 28... e5 {[%clk 0:00:58.2]}
29. Ke3 {[%clk 0:01:45]} 29... e4 {[%clk 0:00:48.8]} 30. Nd4 {[%clk 0:01:42.8]}
30... Rc3+ {[%clk 0:00:48.4]} 31. Kd2 {[%clk 0:01:43.1]} 31... Rxg3 {[%clk
0:00:48.9]} 32. h4 {[%clk 0:01:38.7]} 32... Rh3 {[%clk 0:00:47.8]} 33. c4 {[%clk
0:01:35.9]} 33... e5 {[%clk 0:00:41.8]} 34. Nc2 {[%clk 0:01:28.5]} 34... d4
{[%clk 0:00:42.1]} 35. Nb4 {[%clk 0:01:28.8]} 35... Rxb3 {[%clk 0:00:37.5]} 36.
Nd5 {[%clk 0:01:27.4]} 36... Rf2 {[%clk 0:00:37.3]} 37. c5 {[%clk 0:01:25.7]}
37... Rb2+ {[%clk 0:00:33.5]} 38. Kd1 {[%clk 0:01:25.4]} 38... Rf1# {[%clk
0:00:32]} 0-1

[Event "*** Titled Tuesday Blitz"]
[Site "Chess.com"]
[Date "2020.04.28"]
[Round "5"]
[White "maxsergej"]
[Black "kosmeg"]
[Result "0-1"]
[WhiteElo "2136"]
[BlackElo "2388"]
[TimeControl "180+1"]
[EndTime "10:54:20 PDT"]
[Termination "kosmeg won by resignation"]

1. e4 {[%clk 0:02:58.8]} 1... e5 {[%clk 0:02:58.3]} 2. Nf3 {[%clk 0:02:58.2]}
2... Nc6 {[%clk 0:02:57.2]} 3. Bb5 {[%clk 0:02:57.5]} 3... g6 {[%clk 0:02:57]}
4. O-O {[%clk 0:02:56]} 4... Bg7 {[%clk 0:02:56.8]} 5. c3 {[%clk 0:02:55.4]}
5... a6 {[%clk 0:02:56.5]} 6. Ba4 {[%clk 0:02:53.6]} 6... Nge7 {[%clk
0:02:56.2]} 7. d4 {[%clk 0:02:51.4]} 7... exd4 {[%clk 0:02:57.1]} 8. cxd4 {[%clk
0:02:50]} 8... O-O {[%clk 0:02:57.5]} 9. Nc3 {[%clk 0:02:47.8]} 9... b5 {[%clk
0:02:56.4]} 10. Bc2 {[%clk 0:02:43.3]} 10... d6 {[%clk 0:02:52.2]} 11. h3 {[%clk
0:02:41.4]} 11... Na5 {[%clk 0:02:52.1]} 12. a4 {[%clk 0:02:38.9]} 12... b4
{[%clk 0:02:45.7]} 13. Ne2 {[%clk 0:02:29.6]} 13... c5 {[%clk 0:02:45.5]} 14.
Bg5 {[%clk 0:02:19.2]} 14... h6 {[%clk 0:02:43.5]} 15. Be3 {[%clk 0:02:08.6]}
15... Nc4 {[%clk 0:02:40.5]} 16. Bc1 {[%clk 0:02:04.2]} 16... Bb7 {[%clk
0:02:30.9]} 17. b3 {[%clk 0:02:03.1]} 17... Nb6 {[%clk 0:02:28.2]} 18. Nd2
{[%clk 0:01:52.8]} 18... cxd4 {[%clk 0:02:24.2]} 19. Bd3 {[%clk 0:01:51.5]}
19... Nc6 {[%clk 0:02:17.8]} 20. Bb2 {[%clk 0:01:49.8]} 20... Ne5 {[%clk
0:02:17.3]} 21. Nc4 {[%clk 0:01:35.9]} 21... Nbxc4 {[%clk 0:02:11.7]} 22. Bxc4
{[%clk 0:01:27.6]} 22... Nxc4 {[%clk 0:01:53.4]} 23. bxc4 {[%clk 0:01:26.7]}
23... d3 {[%clk 0:01:53.9]} 24. Nd4 {[%clk 0:01:22]} 24... Bxe4 {[%clk
0:01:49.4]} 25. Re1 {[%clk 0:01:17.7]} 25... Re8 {[%clk 0:01:48.9]} 26. Qd2
{[%clk 0:01:18]} 26... Qg5 {[%clk 0:01:28.1]} 27. Qxg5 {[%clk 0:01:09.8]} 27...
hxg5 {[%clk 0:01:29]} 28. Ra2 {[%clk 0:01:05]} 28... Rac8 {[%clk 0:01:26.1]} 29.
f3 {[%clk 0:00:57.4]} 29... Bf5 {[%clk 0:01:08.5]} 30. Rxe8+ {[%clk 0:00:52]}
30... Rxe8 {[%clk 0:01:08.2]} 31. Nxf5 {[%clk 0:00:49.5]} 31... d2 {[%clk
0:01:04.7]} 32. Ra1 {[%clk 0:00:38.1]} 32... Re1+ {[%clk 0:01:04.3]} 0-1

[Event "*** Titled Tuesday Blitz"]
[Site "Chess.com"]
[Date "2020.04.28"]
[Round "5"]
[White "MacDaddyMac"]
[Black "Kaponov"]
[Result "0-1"]
[WhiteElo "2309"]
[BlackElo "2122"]
[TimeControl "180+1"]
[EndTime "10:54:20 PDT"]
[Termination "Kaponov won by resignation"]

1. e4 {[%clk 0:03:00.9]} 1... c6 {[%clk 0:02:57.2]} 2. d4 {[%clk 0:03:00.7]}
2... d6 {[%clk 0:02:57.9]} 3. Nc3 {[%clk 0:03:00.5]} 3... Nd7 {[%clk 0:02:57.5]}
4. Be3 {[%clk 0:03:00.8]} 4... e5 {[%clk 0:02:57.7]} 5. Nge2 {[%clk 0:02:59.8]}
5... Ngf6 {[%clk 0:02:57.9]} 6. f3 {[%clk 0:03:00]} 6... b5 {[%clk 0:02:57.2]}
7. Qd2 {[%clk 0:03:00.1]} 7... b4 {[%clk 0:02:56.6]} 8. Nd1 {[%clk 0:02:59]}
8... d5 {[%clk 0:02:57.1]} 9. dxe5 {[%clk 0:02:58.6]} 9... Nxe5 {[%clk
0:02:56.7]} 10. Nf2 {[%clk 0:02:58.5]} 10... Nc4 {[%clk 0:02:56.4]} 11. Qd3
{[%clk 0:02:56.7]} 11... Nxb2 {[%clk 0:02:49.9]} 12. Qb3 {[%clk 0:02:52.9]}
12... Nc4 {[%clk 0:02:47.6]} 13. Bg5 {[%clk 0:02:52.7]} 13... Bc5 {[%clk
0:02:36.2]} 14. Nd3 {[%clk 0:02:37.1]} 14... Qb6 {[%clk 0:02:29.7]} 15. Nxc5
{[%clk 0:02:31.9]} 15... Qxc5 {[%clk 0:02:30.2]} 16. Ng3 {[%clk 0:02:06.7]}
16... Be6 {[%clk 0:02:25.3]} 17. Bxf6 {[%clk 0:01:57.4]} 17... gxf6 {[%clk
0:02:23.3]} 18. Bxc4 {[%clk 0:01:57]} 18... dxc4 {[%clk 0:02:20.8]} 19. Qb2
{[%clk 0:01:52.6]} 19... c3 {[%clk 0:02:18.2]} 20. Qc1 {[%clk 0:01:52.7]} 20...
Rd8 {[%clk 0:02:08.5]} 21. Nf1 {[%clk 0:01:43.2]} 21... Rg8 {[%clk 0:02:02.5]}
22. g4 {[%clk 0:01:32.2]} 22... Rd2 {[%clk 0:01:30.8]} 23. Nxd2 {[%clk
0:01:28.2]} 23... Qe3+ {[%clk 0:01:30.6]} 24. Kd1 {[%clk 0:01:28.2]} 24... cxd2
{[%clk 0:01:29.2]} 25. Qb2 {[%clk 0:01:20.5]} 25... Bc4 {[%clk 0:01:05.1]} 26.
c3 {[%clk 0:01:00.9]} 26... Qe2+ {[%clk 0:00:30.4]} 27. Kc2 {[%clk 0:01:00.2]}
27... b3+ {[%clk 0:00:28.9]} 0-1

[Event "*** Titled Tuesday Blitz"]
[Site "Chess.com"]
[Date "2020.04.28"]
[Round "5"]
[White "BakaPG"]
[Black "Shivagami"]
[Result "1-0"]
[WhiteElo "2682"]
[BlackElo "2131"]
[TimeControl "180+1"]
[EndTime "10:54:20 PDT"]
[Termination "BakaPG won on time"]

1. e4 {[%clk 0:03:00.9]} 1... c5 {[%clk 0:02:59.1]} 2. Nf3 {[%clk 0:03:00.3]}
2... d6 {[%clk 0:02:58.5]} 3. d4 {[%clk 0:02:59.9]} 3... cxd4 {[%clk 0:02:46.5]}
4. Nxd4 {[%clk 0:02:59.7]} 4... Nf6 {[%clk 0:02:46.5]} 5. Nc3 {[%clk 0:03:00.2]}
5... a6 {[%clk 0:02:46]} 6. Bg5 {[%clk 0:02:58.9]} 6... e6 {[%clk 0:02:43.6]} 7.
f4 {[%clk 0:02:58.4]} 7... h6 {[%clk 0:02:43.1]} 8. Bh4 {[%clk 0:02:52.5]} 8...
Qb6 {[%clk 0:02:42.8]} 9. Qd2 {[%clk 0:02:50.1]} 9... Qxb2 {[%clk 0:02:41.8]}
10. Rb1 {[%clk 0:02:48.7]} 10... Qa3 {[%clk 0:02:40.6]} 11. Bxf6 {[%clk
0:02:47]} 11... gxf6 {[%clk 0:02:37.8]} 12. Be2 {[%clk 0:02:46.7]} 12... d5
{[%clk 0:02:12.8]} 13. exd5 {[%clk 0:02:43.6]} 13... e5 {[%clk 0:02:04.6]} 14.
fxe5 {[%clk 0:02:37.7]} 14... fxe5 {[%clk 0:02:03.3]} 15. Nf3 {[%clk 0:02:30.4]}
15... Nd7 {[%clk 0:01:45.8]} 16. O-O {[%clk 0:02:28]} 16... Bb4 {[%clk
0:01:23.2]} 17. Rb3 {[%clk 0:02:25.2]} 17... Qa5 {[%clk 0:01:23.2]} 18. a3
{[%clk 0:02:14.2]} 18... Bxa3 {[%clk 0:01:19]} 19. Kh1 {[%clk 0:02:13.2]} 19...
Bc5 {[%clk 0:01:08.6]} 20. Qd3 {[%clk 0:02:03.1]} 20... b5 {[%clk 0:00:43.6]}
21. Qf5 {[%clk 0:01:58]} 21... Qc7 {[%clk 0:00:23.6]} 22. Ne4 {[%clk 0:01:51.4]}
22... Be7 {[%clk 0:00:15.7]} 23. Qh5 {[%clk 0:01:37.6]} 23... Bb7 {[%clk
0:00:08.4]} 24. Rc3 {[%clk 0:01:32.3]} 24... Qb6 {[%clk 0:00:05.5]} 25. Nxe5
{[%clk 0:01:27]} 25... Nxe5 {[%clk 0:00:04.9]} 26. Qxe5 {[%clk 0:01:26.7]} 26...
Kd7 {[%clk 0:00:05.3]} 27. Rxf7 {[%clk 0:01:23.8]} 1-0

[Event "*** Titled Tuesday Blitz"]
[Site "Chess.com"]
[Date "2020.04.28"]
[Round "5"]
[White "robertofabregas"]
[Black "Warerman"]
[Result "0-1"]
[WhiteElo "2115"]
[BlackElo "2444"]
[TimeControl "180+1"]
[EndTime "10:54:25 PDT"]
[Termination "Warerman won by resignation"]

1. d4 {[%clk 0:03:00.9]} 1... Nf6 {[%clk 0:01:42.9]} 2. Bf4 {[%clk 0:02:58]}
2... d5 {[%clk 0:01:41.9]} 3. e3 {[%clk 0:02:58.3]} 3... c5 {[%clk 0:01:42.2]}
4. c3 {[%clk 0:02:57.9]} 4... Nc6 {[%clk 0:01:40.4]} 5. Nd2 {[%clk 0:02:57.5]}
5... Bf5 {[%clk 0:01:39.8]} 6. Ngf3 {[%clk 0:02:55.7]} 6... e6 {[%clk
0:01:39.6]} 7. h3 {[%clk 0:02:55.7]} 7... Bd6 {[%clk 0:01:38.9]} 8. Bg5 {[%clk
0:02:46.5]} 8... h6 {[%clk 0:01:38.4]} 9. Bxf6 {[%clk 0:02:42.8]} 9... Qxf6
{[%clk 0:01:39.3]} 10. Bb5 {[%clk 0:02:41]} 10... O-O {[%clk 0:01:38.9]} 11. a4
{[%clk 0:02:35.7]} 11... a6 {[%clk 0:01:38.3]} 12. Be2 {[%clk 0:02:34.2]} 12...
e5 {[%clk 0:01:36.5]} 13. dxe5 {[%clk 0:02:30]} 13... Nxe5 {[%clk 0:01:37.4]}
14. Nxe5 {[%clk 0:02:28.9]} 14... Qxe5 {[%clk 0:01:35.1]} 15. Nf3 {[%clk
0:02:27.5]} 15... Qe6 {[%clk 0:01:35]} 16. Qb3 {[%clk 0:02:20.5]} 16... Rab8
{[%clk 0:01:17.7]} 17. a5 {[%clk 0:02:12.9]} 17... Rfd8 {[%clk 0:01:16.7]} 18.
Rd1 {[%clk 0:02:12.9]} 18... Bc7 {[%clk 0:01:16.6]} 19. Qa2 {[%clk 0:01:57.8]}
19... Be4 {[%clk 0:01:13.9]} 20. O-O {[%clk 0:01:50.4]} 20... Qd6 {[%clk
0:01:13.6]} 21. g3 {[%clk 0:01:49.7]} 21... Qf6 {[%clk 0:01:10.7]} 22. Nd2
{[%clk 0:01:41.3]} 22... Bc2 {[%clk 0:01:09.6]} 23. Rc1 {[%clk 0:01:36.5]} 23...
Bf5 {[%clk 0:01:09.7]} 24. Kg2 {[%clk 0:01:28.4]} 24... Qe6 {[%clk 0:01:07.2]}
25. Rh1 {[%clk 0:01:22.3]} 25... Qg6 {[%clk 0:01:06.9]} 26. Bf3 {[%clk
0:01:11.2]} 26... h5 {[%clk 0:01:03.8]} 27. Bxd5 {[%clk 0:01:08.5]} 27... Rxd5
{[%clk 0:01:02.7]} 28. Qxd5 {[%clk 0:01:02.9]} 28... Rd8 {[%clk 0:01:03.6]} 29.
Qxb7 {[%clk 0:01:03.4]} 29... Rxd2 {[%clk 0:01:01.9]} 30. Qxc7 {[%clk
0:00:50.3]} 30... Be4+ {[%clk 0:01:00.4]} 31. Kg1 {[%clk 0:00:45.8]} 31... Bxh1
{[%clk 0:00:59.1]} 32. Kxh1 {[%clk 0:00:46.1]} 32... Rxf2 {[%clk 0:00:58.6]} 33.
Rd1 {[%clk 0:00:40.3]} 33... Qe4+ {[%clk 0:00:56.6]} 0-1

[Event "*** Titled Tuesday Blitz"]
[Site "Chess.com"]
[Date "2020.04.28"]
[Round "5"]
[White "okriak"]
[Black "crazy_machine"]
[Result "1-0"]
[WhiteElo "2841"]
[BlackElo "2590"]
[TimeControl "180+1"]
[EndTime "10:54:26 PDT"]
[Termination "okriak won on time"]

1. Nf3 {[%clk 0:03:00.9]} 1... d5 {[%clk 0:02:40.7]} 2. c4 {[%clk 0:03:01.3]}
2... c6 {[%clk 0:02:39]} 3. e3 {[%clk 0:03:01.2]} 3... Nf6 {[%clk 0:02:39.4]} 4.
Nc3 {[%clk 0:03:01.6]} 4... g6 {[%clk 0:02:32.9]} 5. d4 {[%clk 0:03:00.9]} 5...
Bg7 {[%clk 0:02:32.9]} 6. Be2 {[%clk 0:03:01.4]} 6... O-O {[%clk 0:02:33.4]} 7.
O-O {[%clk 0:03:01]} 7... Bf5 {[%clk 0:02:22.1]} 8. cxd5 {[%clk 0:03:00.7]} 8...
cxd5 {[%clk 0:02:22.8]} 9. Qb3 {[%clk 0:03:00.6]} 9... b6 {[%clk 0:02:11]} 10.
Bd2 {[%clk 0:02:58.8]} 10... Nc6 {[%clk 0:02:10]} 11. Rfc1 {[%clk 0:02:57.5]}
11... Na5 {[%clk 0:02:03.6]} 12. Qd1 {[%clk 0:02:57.5]} 12... Rc8 {[%clk
0:02:03.5]} 13. Ne5 {[%clk 0:02:56.6]} 13... Nd7 {[%clk 0:01:50]} 14. Ba6 {[%clk
0:02:55.9]} 14... Rc7 {[%clk 0:01:40.2]} 15. Nxd7 {[%clk 0:02:55.3]} 15... Qxd7
{[%clk 0:01:41.1]} 16. Nb5 {[%clk 0:02:53]} 16... Rxc1 {[%clk 0:01:36.3]} 17.
Rxc1 {[%clk 0:02:53.6]} 17... Nc4 {[%clk 0:01:36.8]} 18. b3 {[%clk 0:02:53.6]}
18... Nb2 {[%clk 0:01:31]} 19. Qf3 {[%clk 0:02:32.9]} 19... e5 {[%clk
0:01:19.2]} 20. Rc7 {[%clk 0:02:23.8]} 20... Qe6 {[%clk 0:01:18.8]} 21. Bc3
{[%clk 0:02:17.1]} 21... Bg4 {[%clk 0:01:04.5]} 22. Qg3 {[%clk 0:02:14.1]} 22...
Nd1 {[%clk 0:01:04.8]} 23. Ba1 {[%clk 0:02:04.9]} 23... e4 {[%clk 0:00:35]} 24.
h3 {[%clk 0:01:59.2]} 24... Bh5 {[%clk 0:00:35]} 25. Rxa7 {[%clk 0:01:51.9]}
25... Rd8 {[%clk 0:00:17.7]} 26. Qc7 {[%clk 0:01:49]} 26... Qf6 {[%clk 0:00:07]}
27. Qf4 {[%clk 0:01:40.7]} 27... Qe6 {[%clk 0:00:07.5]} 28. Nc7 {[%clk
0:01:38.7]} 28... Qc6 {[%clk 0:00:06]} 29. Nxd5 {[%clk 0:01:29.3]} 29... Qxd5
{[%clk 0:00:05.1]} 30. Bc4 {[%clk 0:01:29]} 30... g5 {[%clk 0:00:03.3]} 31. Qc7
{[%clk 0:01:19.7]} 1-0

[Event "*** Titled Tuesday Blitz"]
[Site "Chess.com"]
[Date "2020.04.28"]
[Round "5"]
[White "HaryKane"]
[Black "MrRooke6"]
[Result "0-1"]
[WhiteElo "2577"]
[BlackElo "2428"]
[TimeControl "180+1"]
[EndTime "10:54:27 PDT"]
[Termination "MrRooke6 won by checkmate"]

1. e4 {[%clk 0:03:00.9]} 1... d5 {[%clk 0:02:59.7]} 2. exd5 {[%clk 0:03:00.6]}
2... Nf6 {[%clk 0:02:59.9]} 3. Nf3 {[%clk 0:03:00.1]} 3... Nxd5 {[%clk
0:02:59.3]} 4. d4 {[%clk 0:03:00.1]} 4... Bf5 {[%clk 0:02:59.9]} 5. Be2 {[%clk
0:03:00.5]} 5... e6 {[%clk 0:02:59.9]} 6. O-O {[%clk 0:03:00.9]} 6... Be7 {[%clk
0:02:59.9]} 7. a3 {[%clk 0:02:59.2]} 7... O-O {[%clk 0:02:59.4]} 8. c4 {[%clk
0:02:59.8]} 8... Nb6 {[%clk 0:02:59.1]} 9. Nc3 {[%clk 0:03:00]} 9... Nc6 {[%clk
0:02:59]} 10. Be3 {[%clk 0:02:59.6]} 10... Bf6 {[%clk 0:02:53.4]} 11. b4 {[%clk
0:02:56.1]} 11... a5 {[%clk 0:02:52.7]} 12. b5 {[%clk 0:02:55.6]} 12... Ne7
{[%clk 0:02:51.6]} 13. a4 {[%clk 0:02:54.3]} 13... h6 {[%clk 0:02:49.6]} 14. Qb3
{[%clk 0:02:52.1]} 14... Ng6 {[%clk 0:02:45.8]} 15. Rad1 {[%clk 0:02:50.7]}
15... Qe7 {[%clk 0:02:43.2]} 16. c5 {[%clk 0:02:46]} 16... Nd5 {[%clk
0:02:42.6]} 17. Nxd5 {[%clk 0:02:44.8]} 17... exd5 {[%clk 0:02:43.5]} 18. Qxd5
{[%clk 0:02:41.2]} 18... Bc2 {[%clk 0:02:37.6]} 19. Ra1 {[%clk 0:02:24.7]} 19...
Be4 {[%clk 0:02:36.5]} 20. Qb3 {[%clk 0:02:18.7]} 20... Rad8 {[%clk 0:02:36]}
21. Rfd1 {[%clk 0:02:17.8]} 21... Rd5 {[%clk 0:02:08.3]} 22. Nd2 {[%clk
0:02:01]} 22... Nh4 {[%clk 0:01:52.3]} 23. Nxe4 {[%clk 0:01:40]} 23... Qxe4
{[%clk 0:01:51.7]} 24. f3 {[%clk 0:01:31.8]} 24... Qg6 {[%clk 0:01:51.5]} 25. g3
{[%clk 0:01:23.5]} 25... Rfd8 {[%clk 0:01:48.1]} 26. Bc4 {[%clk 0:01:15]} 26...
Nxf3+ {[%clk 0:01:44.7]} 27. Kf2 {[%clk 0:01:11]} 27... Nxd4 {[%clk 0:01:44.3]}
28. Qd3 {[%clk 0:01:01.8]} 28... Rf5+ {[%clk 0:01:35.5]} 29. Kg2 {[%clk
0:00:56.5]} 29... Nf3 {[%clk 0:01:15.5]} 30. Qxd8+ {[%clk 0:00:54.9]} 30... Bxd8
{[%clk 0:01:14.9]} 31. Rxd8+ {[%clk 0:00:55.8]} 31... Kh7 {[%clk 0:01:15.3]} 32.
Bd3 {[%clk 0:00:54]} 32... Ne5 {[%clk 0:01:11.1]} 33. Bxf5 {[%clk 0:00:52]}
33... Qxf5 {[%clk 0:01:11.3]} 34. Bf4 {[%clk 0:00:42.9]} 34... Qe4+ {[%clk
0:01:09.5]} 35. Kh3 {[%clk 0:00:41.7]} 35... Nd3 {[%clk 0:01:06.8]} 36. Rf1
{[%clk 0:00:39.6]} 36... Nxc5 {[%clk 0:01:03.5]} 37. Bxc7 {[%clk 0:00:36.6]}
37... Ne6 {[%clk 0:01:03.2]} 38. Rd7 {[%clk 0:00:34.1]} 38... Ng5# {[%clk
0:01:02.2]} 0-1

[Event "*** Titled Tuesday Blitz"]
[Site "Chess.com"]
[Date "2020.04.28"]
[Round "5"]
[White "arctic_t00"]
[Black "silverback96"]
[Result "1-0"]
[WhiteElo "2471"]
[BlackElo "2130"]
[TimeControl "180+1"]
[EndTime "10:54:29 PDT"]
[Termination "arctic_t00 won by checkmate"]

1. d4 {[%clk 0:03:00.9]} 1... Nf6 {[%clk 0:02:59]} 2. Nf3 {[%clk 0:03:00.7]}
2... c5 {[%clk 0:02:59.1]} 3. d5 {[%clk 0:03:00.1]} 3... e6 {[%clk 0:02:59.3]}
4. Nc3 {[%clk 0:02:59.6]} 4... exd5 {[%clk 0:02:59.1]} 5. Nxd5 {[%clk
0:03:00.1]} 5... Nxd5 {[%clk 0:03:00]} 6. Qxd5 {[%clk 0:03:00.3]} 6... Nc6
{[%clk 0:03:00.9]} 7. e4 {[%clk 0:02:47.6]} 7... d6 {[%clk 0:03:01.1]} 8. Bc4
{[%clk 0:02:23.8]} 8... Be6 {[%clk 0:02:59.6]} 9. Qd3 {[%clk 0:02:22.9]} 9...
Nb4 {[%clk 0:02:58]} 10. Qe2 {[%clk 0:02:12.6]} 10... Be7 {[%clk 0:02:56.7]} 11.
O-O {[%clk 0:02:08]} 11... Qd7 {[%clk 0:02:45.4]} 12. c3 {[%clk 0:01:51.3]}
12... Nc6 {[%clk 0:02:45.5]} 13. Bf4 {[%clk 0:01:44.6]} 13... h6 {[%clk
0:02:37.6]} 14. Rad1 {[%clk 0:01:43.6]} 14... g5 {[%clk 0:02:27.2]} 15. Bg3
{[%clk 0:01:24.1]} 15... O-O-O {[%clk 0:02:24.7]} 16. b4 {[%clk 0:01:13.7]}
16... cxb4 {[%clk 0:02:23.3]} 17. cxb4 {[%clk 0:01:13.5]} 17... Nxb4 {[%clk
0:02:22.7]} 18. Ne5 {[%clk 0:01:00.2]} 18... Qe8 {[%clk 0:02:08]} 19. Bxe6+
{[%clk 0:00:49.9]} 19... fxe6 {[%clk 0:02:08.9]} 20. Qc4+ {[%clk 0:00:47.5]}
20... Nc6 {[%clk 0:02:02.8]} 21. Qxe6+ {[%clk 0:00:45.6]} 21... Kc7 {[%clk
0:02:02.5]} 22. Nf7 {[%clk 0:00:39.8]} 22... h5 {[%clk 0:01:48.9]} 23. Nxh8
{[%clk 0:00:28.8]} 23... Qxh8 {[%clk 0:01:49]} 24. Rc1 {[%clk 0:00:28.7]} 24...
Qg7 {[%clk 0:01:38.3]} 25. h3 {[%clk 0:00:28]} 25... h4 {[%clk 0:01:31.1]} 26.
Bh2 {[%clk 0:00:27.9]} 26... Kb8 {[%clk 0:01:27.2]} 27. Rfd1 {[%clk 0:00:26]}
27... Ka8 {[%clk 0:01:14.5]} 28. e5 {[%clk 0:00:25.8]} 28... dxe5 {[%clk
0:01:11.3]} 29. Rxd8+ {[%clk 0:00:24.9]} 29... Bxd8 {[%clk 0:01:12.2]} 30. Rxc6
{[%clk 0:00:20.5]} 30... bxc6 {[%clk 0:01:03.6]} 31. Qc8# {[%clk 0:00:20]} 1-0

[Event "*** Titled Tuesday Blitz"]
[Site "Chess.com"]
[Date "2020.04.28"]
[Round "5"]
[White "Grandelicious"]
[Black "LiemLe"]
[Result "0-1"]
[WhiteElo "2775"]
[BlackElo "3006"]
[TimeControl "180+1"]
[EndTime "10:54:36 PDT"]
[Termination "LiemLe won by resignation"]

1. e4 {[%clk 0:03:00.9]} 1... e5 {[%clk 0:02:59]} 2. Nf3 {[%clk 0:02:59.7]} 2...
Nc6 {[%clk 0:02:59.5]} 3. Nc3 {[%clk 0:03:00.4]} 3... Nf6 {[%clk 0:02:58.6]} 4.
Bb5 {[%clk 0:03:01]} 4... Bb4 {[%clk 0:02:54.3]} 5. O-O {[%clk 0:03:00.1]} 5...
O-O {[%clk 0:02:54.1]} 6. d4 {[%clk 0:03:00.4]} 6... exd4 {[%clk 0:02:36.6]} 7.
Nd5 {[%clk 0:02:59.9]} 7... Nxd5 {[%clk 0:01:42.6]} 8. exd5 {[%clk 0:03:00.8]}
8... Ne7 {[%clk 0:01:43.2]} 9. Qxd4 {[%clk 0:02:56.7]} 9... Ba5 {[%clk
0:01:34.5]} 10. Bd3 {[%clk 0:02:13.3]} 10... d6 {[%clk 0:01:28.4]} 11. c4 {[%clk
0:02:01.1]} 11... Bf5 {[%clk 0:01:14.3]} 12. Bxf5 {[%clk 0:01:54.5]} 12... Nxf5
{[%clk 0:01:15.2]} 13. Qg4 {[%clk 0:01:54.9]} 13... Qf6 {[%clk 0:01:09.8]} 14.
Rb1 {[%clk 0:01:33.1]} 14... Rae8 {[%clk 0:00:59.8]} 15. b4 {[%clk 0:01:29.8]}
15... Bb6 {[%clk 0:01:00]} 16. Bb2 {[%clk 0:01:28]} 16... Qg6 {[%clk 0:00:57.6]}
17. Qf4 {[%clk 0:01:23.9]} 17... Ne3 {[%clk 0:00:43.3]} 18. Nh4 {[%clk
0:01:11.6]} 18... Qg4 {[%clk 0:00:30.3]} 19. Qxg4 {[%clk 0:00:50.6]} 19... Nxg4
{[%clk 0:00:31.2]} 20. h3 {[%clk 0:00:43]} 20... Nxf2 {[%clk 0:00:30.9]} 21.
Rxf2 {[%clk 0:00:43.9]} 21... Re4 {[%clk 0:00:25.6]} 22. Nf5 {[%clk 0:00:28.8]}
22... Bxf2+ {[%clk 0:00:24.7]} 0-1